lending/lending_fUSD_20240120
["ID","MTS","AMOUNT","RATE_DAILY","PERIOD"]
[312276772,1705733452487,-560.97863512,0.00024931,2]
[312276773,1705733452497,-500.0,0.00024931,2]
[312276774,1705733452506,-500.0,0.00024931,2]
[312276775,1705733452516,-500.0,0.00024931,2]
[312276776,1705733452525,-500.0,0.00024931,2]
[312276777,1705733452535,-500.0,0.00024931,2]
[312276778,1705733452544,-500.0,0.00024931,2]
[312276779,1705733452554,-500.0,0.00024931,2]
[312276780,1705733452563,-500.0,0.00024931,2]
[312276781,1705733452573,-500.0,0.00024931,2]
[312276782,1705733452583,-500.0,0.00024931,2]
[312276783,1705733452593,-500.0,0.00024931,2]
[312276784,1705733452602,-500.0,0.00024931,2]
[312276785,1705733452612,-500.0,0.00024931,2]
[312276786,1705733452621,-285.20377161,0.00024931,2]
[312276787,1705733452631,-500.0,0.00024931,2]
[312276788,1705733452645,-500.0,0.00024931,2]
[312276789,1705733452655,-500.0,0.00024931,2]
[312276790,1705733452665,-500.0,0.00024931,2]
[312276791,1705733452675,-500.0,0.00024931,2]
[312276792,1705733452686,-500.0,0.00024931,2]
[312276793,1705733452695,-500.0,0.00024931,2]
[312276794,1705733452704,-500.0,0.00024931,2]
[312276795,1705733452717,-500.0,0.00024931,2]
[312276796,1705733452726,-500.0,0.00024931,2]
[312276797,1705733452735,-500.0,0.00024931,2]
[312276798,1705733452745,-500.0,0.00024931,2]
[312276799,1705733452754,-500.0,0.00024931,2]
[312276800,1705733452764,-500.0,0.00024931,2]
[312276801,1705733452774,-500.0,0.00024931,2]
[312276802,1705733452784,-500.0,0.00024931,2]
[312276803,1705733452794,-500.0,0.00024931,2]
[312276804,1705733452804,-500.0,0.00024931,2]
[312276805,1705733452814,-500.0,0.00024931,2]
[312276806,1705733452824,-500.0,0.00024931,2]
[312276807,1705733452834,-1000.0,0.00024931,2]
[312276808,1705733452843,-500.0,0.00024931,2]
[312276809,1705733452853,-500.0,0.00024931,2]
[312276810,1705733452862,-209.57158428,0.00024931,2]
[312276811,1705733452872,-500.0,0.00024931,2]
[312276812,1705733452883,-500.0,0.00024931,2]
[312276813,1705733452893,-500.0,0.00024931,2]
[312276814,1705733452902,-500.0,0.00024931,2]
[312276815,1705733452912,-500.0,0.00024931,2]
[312276816,1705733452922,-500.0,0.00024931,2]
[312276817,1705733452932,-500.0,0.00024931,2]
[312276818,1705733452942,-500.0,0.00024931,2]
[312276819,1705733452951,-500.0,0.00024931,2]
[312276820,1705733452960,-500.0,0.00024931,2]
[312276821,1705733452970,-500.0,0.00024931,2]
[312276822,1705733452980,-500.0,0.00024931,2]
[312276823,1705733452989,-500.0,0.00024931,2]
[312276824,1705733452998,-500.0,0.00024931,2]
[312276825,1705733453008,-500.0,0.00024931,2]
[312276826,1705733453017,-500.0,0.00024931,2]
[312276827,1705733453027,-603.3563057,0.00024931,2]
[312276828,1705733453036,-532.5054153,0.00024931,2]
[312276829,1705733453046,-500.0,0.00024931,2]
[312276830,1705733453055,-500.0,0.00024931,2]
[312276831,1705733453064,-630.15,0.00024931,2]
[312276832,1705733453073,-500.0,0.00024931,2]
[312276833,1705733453083,-623.31,0.00024931,2]
[312276834,1705733453092,-629.56,0.00024931,2]
[312276835,1705733453102,-590.80263192,0.00024931,2]
[312276836,1705733453111,-500.0,0.00024931,2]
[312276837,1705733453121,-500.0,0.00024931,2]
[312276838,1705733453130,-1946.47,0.00024931,2]
[312276839,1705733453140,-500.0,0.00024931,2]
[312276840,1705733453149,-500.0,0.00024931,2]
[312276841,1705733453159,-500.0,0.00024931,2]
[312276842,1705733453168,-500.0,0.00024931,2]
[312276843,1705733453177,-500.0,0.00024931,2]
[312276844,1705733453187,-500.0,0.00024931,5]
[312276845,1705733453196,-587.60771804,0.00024931,2]
[312276846,1705733453206,-893.99,0.00024931,2]
[312276847,1705733453216,-500.0,0.00024931,2]
[312276848,1705733453225,-500.0,0.00024931,2]
[312276849,1705733453235,-500.0,0.00024931,2]
[312276850,1705733453244,-500.0,0.00024931,2]
[312276851,1705733453254,-500.0,0.00024931,2]
[312276852,1705733453263,-1655.52,0.00024931,2]
[312276853,1705733453273,-500.0,0.00024931,2]
[312276854,1705733453283,-1324.72,0.00024931,2]
[312276855,1705733453292,-500.0,0.00024931,2]
[312276856,1705733453302,-500.0,0.00024931,2]
[312276857,1705733453311,-500.0,0.00024931,2]
[312276858,1705733453321,-500.0,0.00024931,2]
[312276859,1705733453330,-2343.96,0.00024931,2]
[312276860,1705733453340,-296.05853563,0.00024931,2]
[312276861,1705733453349,-500.0,0.00024931,2]
[312276862,1705733453359,-500.0,0.00024931,2]
[312276863,1705733453368,-500.0,0.00024931,2]
[312276864,1705733453377,-500.0,0.00024931,2]
[312276865,1705733453387,-908.17,0.00024931,2]
[312276866,1705733453396,-500.0,0.00024931,2]
[312276867,1705733453406,-500.0,0.00024931,2]
[312276868,1705733453415,-2620.88,0.00024931,2]
[312276869,1705733453425,-500.0,0.00024931,2]
[312276870,1705733453435,-500.0,0.00024931,2]
[312276871,1705733453444,-496.70646673,0.00024931,2]
[312276872,1705733453454,-500.0,0.00024931,2]
[312276873,1705733453464,-500.0,0.00024931,2]
[312276874,1705733453473,-1065.1,0.00024931,2]
[312276875,1705733453483,-1374.82,0.00024931,2]
[312276876,1705733453492,-500.0,0.00024931,2]
[312276877,1705733453502,-500.0,0.00024931,2]
[312276878,1705733453512,-500.0,0.00024931,2]
[312276879,1705733453522,-500.0,0.00024931,2]
[312276880,1705733453532,-500.0,0.00024931,2]
[312276881,1705733453542,-7169.98,0.00024931,2]
[312276882,1705733453552,-500.0,0.00024931,2]
[312276883,1705733453561,-396.84430158,0.00024931,2]
[312276884,1705733453571,-958.97,0.00024931,2]
[312276885,1705733453581,-275.98329421,0.00024931,2]
[312276886,1705733453592,-500.0,0.00024931,2]
[312276887,1705733453602,-500.0,0.00024931,2]
[312276888,1705733453613,-515.62,0.00024931,2]
[312276889,1705733453624,-500.0,0.00024931,2]
[312276890,1705733453634,-847.7,0.00024931,2]
[312276891,1705733453647,-500.0,0.00024931,2]
[312276892,1705733453657,-500.0,0.00024931,2]
[312276893,1705733453667,-555.3,0.00024931,2]
[312276894,1705733453677,-500.0,0.00024931,2]
[312276895,1705733453689,-500.0,0.00024931,2]
[312276896,1705733453698,-500.0,0.00024931,2]
[312276897,1705733453708,-570.86,0.00024931,2]
[312276898,1705733453720,-500.0,0.00024931,2]
[312276899,1705733453732,-500.0,0.00024931,2]
[312276900,1705733453742,-212.63714771,0.00024931,2]
[312276901,1705733453751,-500.0,0.00024931,2]
[312276902,1705733453763,-500.0,0.00024931,2]
[312276903,1705733453772,-500.0,0.00024931,2]
[312276904,1705733453782,-500.0,0.00024931,2]
[312276905,1705733453792,-517.1,0.00024931,2]
[312276906,1705733453802,-500.0,0.00024931,2]
[312276907,1705733453812,-500.0,0.00024931,2]
[312276908,1705733453822,-556.18,0.00024931,2]
[312276909,1705733453831,-500.0,0.00024931,2]
[312276910,1705733453841,-500.0,0.00024931,2]
[312276911,1705733453850,-500.0,0.00024931,2]
[312276912,1705733453860,-574.38,0.00024931,2]
[312276913,1705733453869,-500.0,0.00024931,2]
[312276914,1705733453880,-1679.55,0.00024931,2]
[312276915,1705733453890,-556.06,0.00024931,2]
[312276916,1705733453900,-2596.85,0.00024931,2]
[312276917,1705733453910,-500.0,0.00024931,2]
[312276918,1705733453919,-500.0,0.00024931,2]
[312276919,1705733453928,-1106.11,0.00024931,2]
[312276920,1705733453938,-500.0,0.00024931,2]
[312276921,1705733453947,-500.0,0.00024931,2]
[312276922,1705733453957,-246.46179762,0.00024931,2]
[312276923,1705733453967,-500.0,0.00024931,2]
[312276924,1705733453979,-500.0,0.00024931,2]
[312276925,1705733453989,-500.0,0.00024931,2]
[312276926,1705733453998,-543.54,0.00024931,2]
[312276927,1705733454008,-500.0,0.00024931,2]
[312276928,1705733454018,-500.0,0.00024931,2]
[312276929,1705733454027,-500.0,0.00024931,2]
[312276930,1705733454037,-500.0,0.00024931,2]
[312276931,1705733454047,-3165.56,0.00024931,2]
[312276932,1705733454057,-500.0,0.00024931,2]
[312276933,1705733454067,-500.0,0.00024931,2]
[312276934,1705733454079,-500.0,0.00024931,2]
[312276935,1705733454280,-500.0,0.00024931,2]
[312276936,1705733454290,-500.0,0.00024931,2]
[312276937,1705733454300,-500.0,0.00024931,2]
[312276938,1705733454309,-500.0,0.00024931,2]
[312276939,1705733454318,-500.0,0.00024931,2]
[312276940,1705733454329,-500.0,0.00024931,2]
[312276941,1705733454338,-500.0,0.00024931,2]
[312276942,1705733454348,-1260.98,0.00024931,2]
[312276943,1705733454358,-500.0,0.00024931,2]
[312276944,1705733454368,-1023.9,0.00024931,2]
[312276945,1705733454377,-500.0,0.00024931,2]
[312276946,1705733454389,-661.53,0.00024931,2]
[312276947,1705733454400,-500.0,0.00024931,2]
[312276948,1705733454409,-500.0,0.00024931,2]
[312276949,1705733454419,-668.39,0.00024931,2]
[312276950,1705733454428,-500.0,0.00024931,2]
[312276951,1705733454437,-500.0,0.00024931,2]
[312276952,1705733454447,-500.0,0.00024931,2]
[312276953,1705733454458,-569.07,0.00024931,2]
[312276954,1705733454467,-500.0,0.00024931,2]
[312276955,1705733454477,-500.0,0.00024931,2]
[312276956,1705733454486,-500.0,0.00024931,2]
[312276957,1705733454495,-500.0,0.00024931,2]
[312276958,1705733454504,-500.0,0.00024931,2]
[312276959,1705733454514,-500.0,0.00024931,2]
[312276960,1705733454523,-500.0,0.00024931,2]
[312276961,1705733454532,-1562.63,0.00024931,2]
[312276962,1705733454542,-6384.21,0.00024931,2]
[312276963,1705733454551,-500.0,0.00024931,2]
[312276964,1705733454560,-500.0,0.00024931,2]
[312276965,1705733454570,-519.68,0.00024931,2]
[312276966,1705733454579,-951.65,0.00024931,2]
[312276967,1705733454588,-500.0,0.00024931,2]
[312276968,1705733454597,-4782.15,0.00024931,2]
[312276969,1705733454606,-500.0,0.00024931,2]
[312276970,1705733454616,-631.73,0.00024931,2]
[312276971,1705733454625,-860.34,0.00024931,2]
[312276972,1705733454636,-500.0,0.00024931,2]
[312276973,1705733454647,-500.0,0.00024931,2]
[312276974,1705733454657,-500.0,0.00024931,2]
[312276975,1705733454666,-500.0,0.00024931,2]
[312276976,1705733454677,-500.0,0.00024931,2]
[312276977,1705733454686,-500.0,0.00024931,2]
[312276978,1705733454697,-500.0,0.00024931,2]
[312276979,1705733454707,-500.0,0.00024931,2]
[312276980,1705733454719,-527.88,0.00024931,2]
[312276981,1705733454728,-500.0,0.00024931,2]
[312276982,1705733454738,-685.96,0.00024931,2]
[312276983,1705733454747,-563.81,0.00024931,2]
[312276984,1705733454757,-500.0,0.00024931,2]
[312276985,1705733454767,-500.0,0.00024931,2]
[312276986,1705733454777,-500.0,0.00024931,2]
[312276987,1705733454786,-500.0,0.00024931,2]
[312276988,1705733454796,-500.0,0.00024931,2]
[312276989,1705733454806,-500.0,0.00024931,2]
[312276990,1705733454815,-500.0,0.00024931,2]
[312276991,1705733454825,-746.53,0.00024931,2]
[312276992,1705733454834,-500.0,0.00024931,2]
[312276993,1705733454843,-500.0,0.00024931,2]
[312276994,1705733454853,-500.0,0.00024931,2]
[312276995,1705733454863,-500.0,0.00024931,2]
[312276996,1705733454872,-597.23,0.00024931,2]
[312276997,1705733454882,-515.70752491,0.00024931,2]
[312276998,1705733454891,-500.0,0.00024931,2]
[312276999,1705733454901,-500.0,0.00024931,2]
[312277000,1705733454910,-500.0,0.00024931,2]
[312277001,1705733454920,-500.0,0.00024931,2]
[312277002,1705733454929,-500.0,0.00024931,2]
[312277003,1705733454939,-500.0,0.00024931,2]
[312277004,1705733454948,-1213.86,0.00024931,2]
[312277005,1705733454957,-500.0,0.00024931,2]
[312277006,1705733454967,-500.0,0.00024931,2]
[312277007,1705733454976,-500.0,0.00024931,2]
[312277008,1705733454986,-500.0,0.00024931,2]
[312277009,1705733454995,-500.0,0.00024931,2]
[312277010,1705733455005,-500.0,0.00024931,2]
[312277011,1705733455014,-500.0,0.00024931,2]
[312277012,1705733455023,-500.0,0.00024931,2]
[312277013,1705733455034,-502.89998994,0.00024931,2]
[312277014,1705733455043,-349.01456681,0.00024931,2]
[312277015,1705733455053,-1500.0,0.00024944,2]
[312277016,1705733455062,-158.52,0.00024977,2]
[312277017,1705733455071,-1500.0,0.00024981,2]
[312277018,1705733455080,-150.0,0.00024982,2]
[312277019,1705733455090,-167.43304946,0.00025,2]
[312277020,1705733455100,-1584.56156338,0.00025,2]
[312277021,1705733455110,-933.94016922,0.00025,2]
[312277022,1705733455119,-303.55478187,0.00025,2]
[312277023,1705733455129,-202.08717836,0.00025,2]
[312277024,1705733455139,-3000.0,0.00025,2]
[312277025,1705733455149,-150.0,0.00025001,2]
[312277026,1705733455158,-200.0,0.00025002,2]
[312277027,1705733455167,-3000.0,0.0002501,2]
[312277028,1705733455176,-150.0,0.00025014,2]
[312277029,1705733455186,-3000.0,0.0002502,2]
[312277030,1705733455195,-150.0,0.00025029,2]
[312277031,1705733455205,-3000.0,0.0002503,2]
[312277032,1705733455217,-3000.0,0.0002504,2]
[312277033,1705733455226,-150.0,0.00025047,2]
[312277034,1705733455236,-3000.0,0.0002505,2]
[312277035,1705733455246,-5427.690351,0.0002506,2]
[312277036,1705733455255,-150.0,0.00025062,2]
[312277037,1705733455265,-160.83,0.00025074,2]
[312277038,1705733455274,-198.29067422,0.00025105,2]
[312277039,1705733455283,-8889.99872068,0.00025105,2]
[312277040,1705733455293,-290.21821541,0.00025105,2]
[312277041,1705733455302,-150.0,0.0002511,2]
[312277042,1705733455312,-150.0,0.00025124,2]
[312277043,1705733455321,-300.0,0.000252,2]
[312277044,1705733455331,-3000.0,0.000252,2]
[312277045,1705733455340,-250.0,0.000252,2]
[312277046,1705733455349,-333.27834163,0.00025203,2]
[312277047,1705733455358,-223.16656548,0.00025203,2]
[312277048,1705733455368,-25046.60071067,0.00025203,2]
[312277049,1705733455377,-33574.03662695,0.00025203,2]
[312277050,1705733455386,-471.324,0.00025204,2]
[312277051,1705733455396,-150.72940828,0.00025204,2]
[312277052,1705733455405,-1648.10905352,0.00025204,2]
[312277053,1705733455414,-500.0,0.00025204,2]
[312277054,1705733455424,-500.0,0.00025204,2]
[312277055,1705733455433,-500.0,0.00025204,2]
[312277056,1705733455443,-500.0,0.00025204,2]
[312277057,1705733455452,-500.0,0.00025204,2]
[312277058,1705733455463,-500.0,0.00025204,2]
[312277059,1705733455473,-500.0,0.00025204,2]
[312277060,1705733455482,-500.0,0.00025204,2]
[312277061,1705733455492,-500.0,0.00025204,2]
[312277062,1705733455501,-598.97,0.00025204,2]
[312277063,1705733455511,-1296.88,0.00025204,2]
[312277064,1705733455520,-1067.69,0.00025204,2]
[312277065,1705733455530,-500.0,0.00025204,2]
[312277066,1705733455542,-500.0,0.00025204,2]
[312277067,1705733455551,-500.0,0.00025204,2]
[312277068,1705733455561,-500.0,0.00025204,2]
[312277069,1705733455570,-500.0,0.00025204,2]
[312277070,1705733455580,-636.83,0.00025204,2]
[312277071,1705733455589,-556.92,0.00025204,2]
[312277072,1705733455598,-500.0,0.00025204,2]
[312277073,1705733455608,-500.0,0.00025204,2]
[312277074,1705733455617,-500.0,0.00025204,2]
[312277075,1705733455627,-770.48,0.00025204,2]
[312277076,1705733455638,-500.0,0.00025204,2]
[312277077,1705733455651,-500.0,0.00025204,2]
[312277078,1705733455661,-500.0,0.00025204,2]
[312277079,1705733455670,-500.0,0.00025204,2]
[312277080,1705733455681,-500.0,0.00025204,2]
[312277081,1705733455690,-500.0,0.00025204,2]
[312277082,1705733455700,-500.0,0.00025204,2]
[312277083,1705733455709,-500.0,0.00025204,2]
[312277084,1705733455722,-652.74,0.00025204,2]
[312277085,1705733455733,-500.0,0.00025204,2]
[312277086,1705733455742,-1182.85,0.00025204,2]
[312277087,1705733455752,-641.38,0.00025204,2]
[312277088,1705733455761,-500.0,0.00025204,2]
[312277089,1705733455770,-500.0,0.00025204,2]
[312277090,1705733455780,-779.92,0.00025204,2]
[312277091,1705733455790,-760.56,0.00025204,2]
[312277092,1705733455799,-500.0,0.00025204,2]
[312277093,1705733455809,-500.0,0.00025204,2]
[312277094,1705733455818,-500.0,0.00025204,2]
[312277095,1705733455827,-500.0,0.00025204,2]
[312277096,1705733455836,-500.0,0.00025204,2]
[312277097,1705733455845,-500.0,0.00025204,2]
[312277098,1705733455855,-500.0,0.00025204,2]
[312277099,1705733455864,-500.0,0.00025204,2]
[312277100,1705733455873,-500.0,0.00025204,2]
[312277101,1705733455885,-500.0,0.00025204,2]
[312277102,1705733455894,-500.0,0.00025204,2]
[312277103,1705733455903,-500.0,0.00025204,2]
[312277104,1705733455913,-500.0,0.00025205,2]
[312277105,1705733455923,-500.0,0.00025205,2]
[312277106,1705733455935,-371.52,0.00025205,2]
[312277107,1705733455946,-500.0,0.00025205,2]
[312277108,1705733455955,-644.37734174,0.00025205,2]
[312277109,1705733455965,-500.0,0.00025205,2]
[312277110,1705733455975,-500.0,0.00025205,2]
[312277111,1705733455984,-500.0,0.00025205,2]
[312277112,1705733455994,-500.0,0.00025205,2]
[312277113,1705733456003,-500.0,0.00025205,2]
[312277114,1705733456012,-414.32553358,0.00025205,2]
[312277115,1705733456022,-500.0,0.00025205,2]
[312277116,1705733456031,-500.0,0.00025205,2]
[312277117,1705733456040,-500.0,0.00025205,2]
[312277118,1705733456050,-500.0,0.00025205,2]
[312277119,1705733456059,-500.0,0.00025205,2]
[312277120,1705733456068,-225.18768332,0.00025205,2]
[312277121,1705733456077,-500.0,0.00025205,2]
[312277122,1705733456087,-500.0,0.00025205,2]
[312277123,1705733456096,-500.0,0.00025205,2]
[312277124,1705733456105,-500.0,0.00025205,2]
[312277125,1705733456115,-500.0,0.00025205,2]
[312277126,1705733456125,-500.0,0.00025205,2]
[312277127,1705733456134,-500.0,0.00025205,2]
[312277128,1705733456144,-500.0,0.00025205,2]
[312277129,1705733456153,-330.27852154,0.00025205,2]
[312277130,1705733456162,-498.28207796,0.00025205,2]
[312277131,1705733456171,-500.0,0.00025205,2]
[312277132,1705733456181,-500.0,0.00025205,2]
[312277133,1705733456189,-500.0,0.00025205,2]
[312277134,1705733456198,-500.0,0.00025205,2]
[312277135,1705733456208,-500.0,0.00025205,2]
[312277136,1705733456219,-500.0,0.00025205,2]
[312277137,1705733456229,-500.0,0.00025205,2]
[312277138,1705733456238,-500.0,0.00025205,2]
[312277139,1705733456248,-500.0,0.00025205,2]
[312277140,1705733456257,-500.0,0.00025205,2]
[312277141,1705733456266,-500.0,0.00025205,2]
[312277142,1705733456275,-500.0,0.00025205,2]
[312277143,1705733456284,-500.0,0.00025205,2]
[312277144,1705733456294,-283.19303565,0.00025205,2]
[312277145,1705733456303,-500.0,0.00025205,2]
[312277146,1705733456312,-500.0,0.00025205,2]
[312277147,1705733456321,-500.0,0.00025205,2]
[312277148,1705733456330,-500.0,0.00025205,2]
[312277149,1705733456339,-500.0,0.00025205,2]
[312277150,1705733456348,-500.0,0.00025205,2]
[312277151,1705733456357,-500.0,0.00025205,2]
[312277152,1705733456367,-500.0,0.00025205,2]
[312277153,1705733456376,-500.0,0.00025205,2]
[312277154,1705733456385,-634.17561223,0.00025205,2]
[312277155,1705733456394,-500.0,0.00025205,2]
[312277156,1705733456403,-500.0,0.00025205,2]
[312277157,1705733456412,-500.0,0.00025205,2]
[312277158,1705733456422,-500.0,0.00025205,2]
[312277159,1705733456431,-500.0,0.00025205,2]
[312277160,1705733456441,-500.0,0.00025205,2]
[312277161,1705733456450,-500.0,0.00025205,2]
[312277162,1705733456459,-500.0,0.00025205,2]
[312277163,1705733456469,-361.43932264,0.00025205,2]
[312277164,1705733456479,-500.0,0.00025205,2]
[312277165,1705733456488,-500.0,0.00025205,2]
[312277166,1705733456498,-500.0,0.00025205,2]
[312277167,1705733456507,-500.0,0.00025205,2]
[312277168,1705733456517,-500.0,0.00025205,2]
[312277169,1705733456583,-589.15452496,0.00025205,2]
[312277170,1705733456593,-500.0,0.00025205,2]
[312277171,1705733456601,-150.0,0.00025205,2]
[312277172,1705733456611,-1486.38,0.00025205,2]
[312277173,1705733456620,-500.0,0.00025205,2]
[312277174,1705733456629,-500.0,0.00025205,2]
[312277175,1705733456638,-541.2562466,0.00025205,2]
[312277176,1705733456650,-327.3681636,0.00025205,2]
[312277177,1705733456659,-500.0,0.00025205,2]
[312277178,1705733456668,-500.0,0.00025205,2]
[312277179,1705733456677,-500.0,0.00025205,2]
[312277180,1705733456686,-500.0,0.00025205,2]
[312277181,1705733456695,-500.0,0.00025205,2]
[312277182,1705733456704,-500.0,0.00025205,2]
[312277183,1705733456713,-500.0,0.00025205,2]
[312277184,1705733456723,-500.0,0.00025205,2]
[312277185,1705733456733,-500.0,0.00025205,2]
[312277186,1705733456743,-500.0,0.00025205,2]
[312277187,1705733456753,-500.0,0.00025205,2]
[312277188,1705733456762,-500.0,0.00025205,2]
[312277189,1705733456773,-500.0,0.00025205,2]
[312277190,1705733456782,-500.0,0.00025205,2]
[312277191,1705733456792,-500.0,0.00025205,2]
[312277192,1705733456801,-500.0,0.00025205,2]
[312277193,1705733456811,-500.0,0.00025205,2]
[312277194,1705733456822,-500.0,0.00025205,2]
[312277195,1705733456831,-500.0,0.00025205,2]
[312277196,1705733456841,-500.0,0.00025205,2]
[312277197,1705733456851,-500.0,0.00025205,2]
[312277198,1705733456860,-500.0,0.00025205,2]
[312277199,1705733456870,-500.0,0.00025205,2]
[312277200,1705733456880,-500.0,0.00025205,2]
[312277201,1705733456889,-1000.0,0.00025205,2]
[312277202,1705733456899,-500.0,0.00025205,2]
[312277203,1705733456908,-500.0,0.00025205,2]
[312277204,1705733456917,-335.5163637,0.00025205,2]
[312277205,1705733456927,-500.0,0.00025205,2]
[312277206,1705733456936,-500.0,0.00025205,2]
[312277207,1705733456944,-500.0,0.00025205,2]
[312277208,1705733456953,-500.0,0.00025205,2]
[312277209,1705733456962,-500.0,0.00025205,2]
[312277210,1705733456972,-500.0,0.00025205,2]
[312277211,1705733456981,-500.0,0.00025205,2]
[312277212,1705733456990,-500.0,0.00025205,2]
[312277213,1705733456999,-500.0,0.00025205,2]
[312277214,1705733457009,-2083.0571641,0.00025205,2]
[312277215,1705733457018,-500.0,0.00025205,2]
[312277216,1705733457026,-630.15,0.00025205,2]
[312277217,1705733457036,-500.0,0.00025205,2]
[312277218,1705733457045,-623.31,0.00025205,2]
[312277219,1705733457054,-629.56,0.00025205,2]
[312277220,1705733457064,-500.0,0.00025205,2]
[312277221,1705733457073,-1946.47,0.00025205,2]
[312277222,1705733457082,-500.0,0.00025205,2]
[312277223,1705733457091,-500.0,0.00025205,2]
[312277224,1705733457100,-500.0,0.00025205,2]
[312277225,1705733457110,-500.0,0.00025205,2]
[312277226,1705733457119,-500.0,0.00025205,5]
[312277227,1705733457128,-893.99,0.00025205,2]
[312277228,1705733457138,-500.0,0.00025205,2]
[312277229,1705733457147,-180.48492946,0.00025205,2]
[312277230,1705733457156,-500.0,0.00025205,2]
[312277231,1705733457165,-1655.52,0.00025205,2]
[312277232,1705733457175,-1324.72,0.00025205,2]
[312277233,1705733457184,-500.0,0.00025205,2]
[312277234,1705733457193,-500.0,0.00025205,2]
[312277235,1705733457202,-2343.96,0.00025205,2]
[312277236,1705733457211,-500.0,0.00025205,2]
[312277237,1705733457220,-500.0,0.00025205,2]
[312277238,1705733457229,-500.0,0.00025205,2]
[312277239,1705733457239,-500.0,0.00025205,2]
[312277240,1705733457248,-500.0,0.00025205,2]
[312277241,1705733457257,-908.17,0.00025205,2]
[312277242,1705733457266,-158.75026773,0.00025205,2]
[312277243,1705733457275,-2620.88,0.00025205,2]
[312277244,1705733457284,-500.0,0.00025205,2]
[312277245,1705733457293,-500.0,0.00025205,2]
[312277246,1705733457302,-500.0,0.00025205,2]
[312277247,1705733457311,-1065.1,0.00025205,2]
[312277248,1705733457320,-1374.82,0.00025205,2]
[312277249,1705733457329,-500.0,0.00025205,2]
[312277250,1705733457338,-500.0,0.00025205,2]
[312277251,1705733457347,-522.05,0.00025205,2]
[312277252,1705733457357,-500.0,0.00025205,2]
[312277253,1705733457367,-7169.98,0.00025205,2]
[312277254,1705733457376,-958.97,0.00025205,2]
[312277255,1705733457385,-500.0,0.00025205,2]
[312277256,1705733457394,-500.0,0.00025205,2]
[312277257,1705733457405,-847.7,0.00025205,2]
[312277258,1705733457414,-500.0,0.00025205,2]
[312277259,1705733457424,-555.3,0.00025205,2]
[312277260,1705733457433,-500.0,0.00025205,2]
[312277261,1705733457442,-570.86,0.00025205,2]
[312277262,1705733457452,-500.0,0.00025205,2]
[312277263,1705733457461,-500.0,0.00025205,2]
[312277264,1705733457470,-500.0,0.00025205,2]
[312277265,1705733457479,-500.0,0.00025205,2]
[312277266,1705733457488,-517.1,0.00025205,2]
[312277267,1705733457497,-500.0,0.00025205,2]
[312277268,1705733457506,-556.18,0.00025205,2]
[312277269,1705733457515,-500.0,0.00025205,2]
[312277270,1705733457525,-500.0,0.00025205,2]
[312277271,1705733457534,-574.38,0.00025205,2]